bitfinex/quotes_BTCUSD_20241120
["timestamp","ask_amount","ask_price","bid_price","bid_amount"]
[1732139457263,0.023,94407.0,94403.0,0.105928]
[1732139457463,0.023,94407.0,94406.0,0.00277395]
[1732139457691,0.023,94407.0,94403.0,0.105928]
[1732139457866,0.023,94407.0,94406.0,0.00277395]
[1732139458044,0.023,94407.0,94403.0,0.105927]
[1732139458280,0.023,94407.0,94406.0,0.00277395]
[1732139458480,0.023,94407.0,94403.0,0.105927]
[1732139458778,0.105924,94407.0,94406.0,0.00277395]
[1732139458987,0.105926,94405.0,94401.0,0.10593]
[1732139459205,0.218024,94407.0,94406.0,0.00277094]
[1732139459447,0.31785,94384.0,94372.0,0.1076748]
[1732139459661,0.0474,94394.0,94374.0,0.105961]
[1732139459662,0.023,94380.0,94374.0,0.105961]
[1732139460068,0.023,94384.0,94377.0,0.00255488]
[1732139460278,0.023,94381.0,94377.0,0.00255488]
[1732139460516,0.023,94381.0,94377.0,0.10851188]
[1732139460709,0.023,94391.0,94383.0,0.105951]
[1732139460943,0.023,94391.0,94378.0,0.00256096]
[1732139461148,0.023,94391.0,94376.0,0.0017116]
[1732139461149,0.06699297,94391.0,94388.0,0.0765]
[1732139461304,0.06699297,94391.0,94388.0,0.182445]
[1732139461502,0.105939,94394.0,94388.0,0.182445]
[1732139461503,0.023,94393.0,94389.0,0.00256202]
[1732139461709,0.234873,94396.0,94389.0,0.00256202]
[1732139461880,0.023,94396.0,94392.0,0.10594]
[1732139462254,0.023,94396.0,94388.0,0.0765]
[1732139462255,0.023,94399.0,94395.0,0.105937]
[1732139462437,0.023,94399.0,94393.0,0.10849974]
[1732139462636,0.25562918,94400.0,94392.0,0.105941]
[1732139462637,0.023,94396.0,94392.0,0.105941]
[1732139463254,0.023,94396.0,94394.0,0.0017116]
[1732139463683,0.105936,94396.0,94394.0,0.0017116]
[1732139463820,0.128937,94395.0,94394.0,0.00160567]
[1732139464026,0.023,94395.0,94394.0,0.00160567]
[1732139464233,0.04376518,94400.0,94398.0,0.105934]
[1732139464432,0.105925,94407.0,94399.0,0.105933]
[1732139464655,0.0008558,94409.0,94400.0,0.105932]
[1732139464829,0.0008558,94409.0,94402.0,0.105929]
[1732139464830,0.105924,94407.0,94402.0,0.105929]
[1732139465033,0.211846,94408.0,94399.0,0.105933]
[1732139465231,0.211846,94408.0,94401.0,0.10593]
[1732139465458,0.105925,94406.0,94401.0,0.10593]
[1732139465657,0.023,94405.0,94402.0,0.105929]
[1732139465814,0.023,94405.0,94401.0,0.10593]
[1732139466017,0.105928,94404.0,94397.0,0.105935]
[1732139466226,0.105927,94404.0,94399.0,0.105932]
[1732139466425,0.105927,94404.0,94399.0,0.211864]
[1732139466426,0.023,94403.0,94399.0,0.211864]
[1732139466676,0.023,94403.0,94399.0,0.105932]
[1732139466900,0.128929,94403.0,94398.0,0.105933]
[1732139467122,0.128937,94395.0,94394.0,0.00160567]
[1732139467866,0.23605212,94395.0,94394.0,0.00160567]
[1732139468283,0.24605212,94395.0,94394.0,0.00160567]
[1732139468481,0.25605212,94395.0,94394.0,0.00160567]
[1732139468691,0.36511467,94395.0,94394.0,0.00160567]
[1732139469302,0.41032164,94395.0,94394.0,0.00160567]
[1732139469707,0.30125909,94395.0,94394.0,0.00160567]
[1732139470295,0.3941285,94395.0,94394.0,0.00160567]
[1732139471118,0.29925909,94395.0,94394.0,0.00160567]
[1732139471320,0.30125909,94395.0,94394.0,0.00160567]
[1732139471525,0.29925909,94395.0,94394.0,0.00160567]
[1732139472923,0.28925909,94395.0,94394.0,0.00160567]
[1732139473348,0.29925909,94395.0,94394.0,0.00160567]
[1732139477671,0.28925909,94395.0,94394.0,0.00160567]
[1732139477920,0.29925909,94395.0,94394.0,0.00160567]
[1732139478176,0.28925909,94395.0,94394.0,0.00160567]
[1732139478423,0.14914397,94395.0,94394.0,0.00160567]
[1732139479119,0.15914397,94395.0,94394.0,0.00160567]
[1732139479596,0.17214397,94395.0,94394.0,0.00160567]
[1732139479796,0.18214397,94395.0,94394.0,0.00160567]
[1732139481243,0.17214397,94395.0,94394.0,0.00160567]
[1732139481479,0.18214397,94395.0,94394.0,0.00160567]
[1732139481708,0.17214397,94395.0,94394.0,0.00160567]
[1732139482164,0.18214397,94395.0,94394.0,0.00160567]
[1732139483796,0.17214397,94395.0,94394.0,0.00160567]
[1732139484028,0.18214397,94395.0,94394.0,0.00160567]
[1732139487460,0.17299997,94395.0,94394.0,0.00160567]
[1732139487685,0.18299997,94395.0,94394.0,0.00160567]
[1732139488180,0.17299997,94395.0,94394.0,0.00160567]
[1732139496043,0.28011509,94395.0,94394.0,0.00160567]
[1732139496870,0.37111509,94395.0,94394.0,0.00160567]
[1732139497616,0.46605818,94395.0,94394.0,0.00160567]
[1732139497993,0.37111509,94395.0,94394.0,0.00160567]
[1732139498756,0.52354671,94395.0,94394.0,0.00160567]
[1732139498957,0.52554671,94395.0,94394.0,0.00160567]
[1732139499127,0.57328649,94395.0,94394.0,0.00160567]
[1732139500358,0.43085487,94395.0,94394.0,0.00160567]
[1732139502717,0.78143258,94395.0,94394.0,0.00160567]
[1732139502922,0.43085487,94395.0,94394.0,0.00160567]
[1732139503477,0.78147452,94395.0,94394.0,0.00160567]
[1732139504711,0.73373474,94395.0,94394.0,0.00160567]
[1732139507106,0.73473474,94395.0,94394.0,0.00160567]
[1732139507522,0.73477989,94395.0,94394.0,0.00160567]
[1732139508520,0.73277989,94395.0,94394.0,0.00160567]
[1732139509159,0.38211509,94395.0,94394.0,0.00160567]
[1732139510246,0.73283845,94395.0,94394.0,0.00160567]
[1732139510644,0.841901,94395.0,94394.0,0.00160567]
[1732139511274,0.843901,94395.0,94394.0,0.00160567]
[1732139511552,1.03389081,94395.0,94394.0,0.00160567]
[1732139512518,0.843901,94395.0,94394.0,0.00160567]
[1732139513084,0.73483845,94395.0,94394.0,0.00160567]
[1732139515512,0.73283845,94395.0,94394.0,0.00160567]
[1732139516281,0.73483845,94395.0,94394.0,0.00160567]
[1732139516524,0.92499427,94395.0,94394.0,0.00160567]
[1732139516791,0.9252302,94395.0,94394.0,0.00160567]
[1732139516995,0.89622456,94395.0,94394.0,0.00160567]
[1732139517768,0.81522456,94395.0,94394.0,0.00160567]
[1732139518116,0.92429196,94395.0,94394.0,0.00160567]
[1732139520000,0.81522941,94395.0,94394.0,0.00160567]
[1732139520213,1.05292224,94395.0,94394.0,0.00160567]
[1732139520984,1.05291323,94395.0,94394.0,0.00160567]
[1732139521549,0.81522404,94395.0,94394.0,0.00160567]
[1732139521682,1.05291323,94395.0,94394.0,0.00160567]
[1732139522024,0.81522404,94395.0,94394.0,0.00160567]
[1732139522590,0.92428659,94395.0,94394.0,0.00160567]
[1732139522794,0.81322404,94395.0,94394.0,0.00160567]
[1732139523380,1.00536682,94395.0,94394.0,0.00160567]
[1732139523827,0.81522404,94395.0,94394.0,0.00160567]
[1732139524273,1.00536682,94395.0,94394.0,0.00160567]
[1732139524682,0.81522404,94395.0,94394.0,0.00160567]
[1732139524997,1.00532482,94395.0,94394.0,0.00160567]
[1732139525215,0.81519124,94395.0,94394.0,0.00160567]
[1732139526614,0.81319124,94395.0,94394.0,0.00160567]
[1732139527219,0.81519124,94395.0,94394.0,0.00160567]
[1732139527421,0.60904524,94395.0,94394.0,0.08030567]
[1732139527633,0.25811509,94395.0,94394.0,0.08030567]
[1732139528677,0.25711509,94395.0,94394.0,0.08030567]
[1732139528833,0.28011509,94395.0,94394.0,0.08030567]
[1732139530790,0.40071157,94395.0,94394.0,0.08030567]
[1732139532257,0.41071157,94395.0,94394.0,0.00160567]
[1732139532457,0.53268884,94395.0,94394.0,0.00160567]
[1732139532714,0.43764009,94395.0,94394.0,0.00160567]
[1732139532890,0.78852242,94395.0,94394.0,0.00160567]
[1732139533280,0.41071157,94395.0,94394.0,0.00160567]
[1732139533489,0.55329853,94395.0,94394.0,0.00160567]
[1732139533686,0.55329692,94395.0,94394.0,0.00160567]
[1732139533898,0.77160134,94395.0,94394.0,0.00160567]
[1732139534105,0.96174375,94395.0,94394.0,0.00160567]
[1732139534335,0.42071157,94395.0,94394.0,0.00160567]
[1732139534540,0.56330284,94395.0,94394.0,0.00160567]
[1732139534713,0.42071157,94395.0,94394.0,0.00160567]
[1732139534914,0.96176473,94395.0,94394.0,0.00160567]
[1732139535847,0.42071157,94395.0,94394.0,0.00160567]
[1732139536249,0.77165336,94395.0,94394.0,0.00160567]
[1732139536699,0.56331984,94395.0,94394.0,0.00160567]
[1732139537059,0.42071157,94395.0,94394.0,0.00160567]
[1732139537258,0.77166787,94395.0,94394.0,0.00160567]
[1732139537684,0.96182255,94395.0,94394.0,0.00160567]
[1732139538051,0.77166787,94395.0,94394.0,0.00160567]
[1732139538447,0.96182807,94395.0,94394.0,0.00160567]
[1732139538657,0.77169942,94395.0,94394.0,0.00160567]
[1732139538856,0.8320921,94395.0,94394.0,0.00160567]
[1732139539085,0.8330921,94395.0,94394.0,0.00160567]
[1732139539301,0.8320921,94395.0,94394.0,0.00160567]
[1732139539707,1.02527904,94395.0,94394.0,0.00160567]
[1732139540080,0.83510753,94395.0,94394.0,0.00160567]
[1732139540305,0.127958,94377.0,94372.0,0.0017118]
[1732139540514,0.31458395,94377.0,94372.0,0.0017118]
[1732139540714,0.125979,94358.0,94353.0,0.075]
[1732139540911,0.23609412,94358.0,94353.0,0.075]
[1732139541124,0.128979,94358.0,94357.0,0.00429658]
[1732139541301,0.023,94361.0,94358.0,0.1239]
[1732139541721,0.023,94372.0,94361.0,0.1239]
[1732139541910,0.023,94364.0,94362.0,0.075]
[1732139542112,0.023,94364.0,94362.0,0.07771331]
[1732139542354,0.023,94363.0,94362.0,0.07771331]
[1732139542527,0.128973,94363.0,94362.0,0.07771331]
[1732139542732,0.128973,94363.0,94362.0,0.075]
[1732139543623,0.023,94363.0,94362.0,0.075]
[1732139543831,0.023,94374.0,94364.0,0.0779]
[1732139544057,0.023,94374.0,94368.0,0.0779]
[1732139544246,0.105962,94374.0,94368.0,0.0779]
[1732139544397,0.023,94373.0,94369.0,0.00270463]
[1732139544591,0.023,94375.0,94369.0,0.00270463]
[1732139545018,0.023,94375.0,94369.0,0.10867063]
[1732139545230,0.023,94375.0,94372.0,0.0481]
[1732139545428,0.023,94375.0,94373.0,0.0779]
[1732139545649,0.023,94375.0,94373.0,0.08036282]
[1732139549089,0.12896,94375.0,94373.0,0.08036282]
[1732139549333,0.105961,94374.0,94373.0,0.08036282]
[1732139549753,0.128961,94374.0,94373.0,0.08036282]
[1732139550131,0.105961,94374.0,94373.0,0.08036282]
[1732139550376,0.128961,94374.0,94373.0,0.0779]
[1732139550611,0.128961,94374.0,94373.0,0.08036983]
[1732139550941,0.023,94375.0,94373.0,0.08036983]
[1732139551148,0.09504693,94386.0,94375.0,0.10596]
[1732139551149,0.023,94385.0,94375.0,0.10596]
[1732139551344,0.023,94383.0,94376.0,0.0783]
[1732139551547,0.14257039,94389.0,94376.0,0.0783]
[1732139551548,0.09504693,94391.0,94383.0,0.0783]
[1732139551747,0.09504693,94391.0,94385.0,0.105948]
[1732139551748,0.023,94390.0,94385.0,0.105948]
[1732139551987,0.105942,94391.0,94385.0,0.105948]
[1732139552201,0.105942,94391.0,94386.0,0.00245023]
[1732139552499,0.105943,94390.0,94386.0,0.00245023]
[1732139552699,0.105943,94390.0,94384.0,0.0468]
[1732139552700,0.04292692,94395.0,94388.0,0.0783]
[1732139552915,0.105939,94394.0,94388.0,0.0783]
[1732139553125,0.000856,94395.0,94391.0,0.105941]
[1732139553324,0.000856,94395.0,94390.0,0.184943]
[1732139553521,0.000856,94395.0,94392.0,0.00244347]
[1732139553661,0.10594,94393.0,94391.0,0.00244364]
[1732139553860,0.10594,94393.0,94390.0,0.079]
[1732139554108,0.000856,94395.0,94391.0,0.00244364]
[1732139554324,0.000856,94395.0,94390.0,0.079]
[1732139554545,0.023856,94395.0,94392.0,0.00244251]
[1732139554749,0.023,94392.0,94391.0,0.00244364]
[1732139554901,0.023856,94395.0,94393.0,0.00244138]
[1732139555287,0.023856,94395.0,94390.0,0.184943]
[1732139555288,0.023,94393.0,94390.0,0.079]
[1732139555744,0.000856,94395.0,94390.0,0.079]
[1732139556181,0.023,94393.0,94390.0,0.079]
[1732139556592,0.000856,94395.0,94390.0,0.079]
[1732139556593,0.023,94394.0,94390.0,0.079]
[1732139556818,0.023856,94395.0,94391.0,0.105942]
[1732139556996,0.023856,94395.0,94390.0,0.079]
[1732139556997,0.129793,94395.0,94390.0,0.079]
[1732139557198,0.128942,94391.0,94390.0,0.079]
[1732139560469,0.24605712,94391.0,94390.0,0.000856]
[1732139562968,0.24577928,94391.0,94390.0,0.000856]
[1732139564827,0.49188348,94391.0,94390.0,0.000856]
[1732139565027,0.46495496,94391.0,94390.0,0.000856]
[1732139565767,0.81549073,94391.0,94390.0,0.000856]
[1732139566172,1.11445598,94391.0,94390.0,0.000856]
[1732139566610,1.11545598,94391.0,94390.0,0.000856]
[1732139566787,1.11445598,94391.0,94390.0,0.000856]
[1732139567556,0.92455328,94391.0,94390.0,0.000856]
[1732139567839,0.92555328,94391.0,94390.0,0.000856]
[1732139568052,0.92755328,94391.0,94390.0,0.000856]
[1732139568259,0.92655328,94391.0,94390.0,0.000856]
[1732139568456,0.8459776,94391.0,94390.0,0.000856]
[1732139568694,0.8499776,94391.0,94390.0,0.000856]
[1732139568922,1.0398803,94391.0,94390.0,0.000856]
[1732139569110,1.0358803,94391.0,94390.0,0.000856]
[1732139569326,1.0398803,94391.0,94390.0,0.000856]
[1732139569565,1.0488803,94391.0,94390.0,0.001856]
[1732139569971,0.93981775,94391.0,94390.0,0.001856]
[1732139571455,0.74087811,94391.0,94390.0,0.000856]
[1732139571688,0.93077862,94391.0,94390.0,0.000856]
[1732139572008,0.74287811,94391.0,94390.0,0.000856]
[1732139572376,0.76582781,94391.0,94390.0,0.000856]
[1732139575061,0.61427811,94391.0,94390.0,0.000856]
[1732139577006,0.30011336,94373.0,94372.0,0.000856]
[1732139577144,0.40722848,94373.0,94372.0,0.000856]
[1732139578497,0.40722848,94373.0,94372.0,2.000856]
[1732139578498,0.49780416,94373.0,94372.0,2.000856]
[1732139578700,0.55631499,94373.0,94372.0,2.000856]
[1732139578951,0.80782362,94373.0,94372.0,2.00332043]
[1732139579106,0.93535315,94373.0,94372.0,2.00332043]
[1732139579315,1.01592883,94373.0,94372.0,2.00332043]
[1732139579579,1.00686628,94373.0,94372.0,2.00332043]
[1732139579939,1.24425431,94373.0,94372.0,2.00332043]
[1732139580606,1.21725347,94373.0,94372.0,2.00332043]
[1732139581066,0.97988131,94373.0,94372.0,2.00332043]
[1732139581312,1.00680983,94373.0,94372.0,1.58876724]
[1732139581541,1.16976944,94373.0,94372.0,1.58876724]
[1732139582265,0.67176477,94373.0,94372.0,1.58876724]
[1732139582489,1.02607133,94373.0,94372.0,1.58876724]
[1732139582705,1.02807095,94373.0,94372.0,1.58876724]
[1732139582954,1.02807095,94373.0,94372.0,1.58962324]
[1732139583188,0.67776477,94373.0,94372.0,1.58962324]
[1732139583937,0.82007796,94373.0,94372.0,1.58962324]
[1732139584185,0.67776477,94373.0,94372.0,1.58962324]
[1732139584437,0.92910773,94373.0,94372.0,1.58962324]
[1732139584890,1.13697734,94373.0,94372.0,1.58962324]
[1732139585282,0.78682732,94373.0,94372.0,1.58962324]
[1732139586421,0.92904998,94373.0,94372.0,1.58962324]
[1732139586629,0.78682732,94373.0,94372.0,1.58962324]
[1732139587325,0.57824182,94373.0,94372.0,1.58962324]
[1732139587523,0.67776477,94373.0,94372.0,1.58962324]
[1732139588199,0.64818246,94373.0,94372.0,1.58962324]
[1732139588427,0.67776477,94373.0,94372.0,1.58962324]
[1732139589109,0.79947789,94373.0,94372.0,1.15647202]
[1732139589260,0.70469329,94373.0,94372.0,1.15647202]
[1732139589851,0.72915756,94373.0,94372.0,1.15647202]
[1732139591151,0.90451784,94373.0,94372.0,1.15647202]
[1732139591349,0.80973324,94373.0,94372.0,1.15647202]
[1732139591879,0.80973324,94373.0,94372.0,1.14799852]
[1732139592356,0.9044689,94373.0,94372.0,1.14799852]
[1732139592495,0.80973324,94373.0,94372.0,1.14799852]
[1732139592903,0.70469329,94373.0,94372.0,1.14799852]
[1732139595353,0.79939829,94373.0,94372.0,1.14799852]
[1732139595734,0.80111049,94373.0,94372.0,1.14799852]
[1732139596184,0.80111049,94373.0,94372.0,1.11179464]
[1732139596431,0.94811049,94373.0,94372.0,1.11179464]
[1732139596762,1.05717304,94373.0,94372.0,1.11179464]
[1732139597264,0.96246804,94373.0,94372.0,1.11179464]
[1732139597872,0.85340549,94373.0,94372.0,1.11179464]
[1732139598095,0.94809336,94373.0,94372.0,1.11179464]
[1732139598941,0.85340549,94373.0,94372.0,1.11179464]
[1732139599952,0.77282981,94373.0,94372.0,1.11179464]
[1732139600158,0.91489259,94373.0,94372.0,1.11179464]
[1732139600364,1.02395514,94373.0,94372.0,1.11179464]
[1732139601125,0.88189236,94373.0,94372.0,1.11179464]
[1732139601336,0.85496384,94373.0,94372.0,1.11179464]
[1732139601534,0.74590129,94373.0,94372.0,1.11179464]
[1732139602205,1.09573988,94373.0,94372.0,1.11179464]
[1732139602966,0.88805793,94373.0,94372.0,1.11179464]
[1732139603168,1.09583096,94373.0,94372.0,1.11179464]
[1732139603342,0.74590129,94373.0,94372.0,1.11179464]
[1732139603494,0.85496384,94373.0,94372.0,1.11179464]
[1732139603696,0.8360067,94373.0,94372.0,1.11179464]
[1732139603929,0.88809551,94373.0,94372.0,1.11179464]
[1732139604107,1.09592333,94373.0,94372.0,1.11179464]
[1732139607197,1.33285106,94373.0,94372.0,1.11179464]
[1732139608173,1.33285106,94373.0,94372.0,1.10332269]
[1732139609788,1.35977958,94373.0,94372.0,1.10332269]
[1732139610254,0.97585185,94373.0,94372.0,1.10332269]
[1732139611300,1.0849144,94373.0,94372.0,1.10332269]
[1732139612216,1.08534972,94373.0,94372.0,1.10332269]
[1732139612346,0.97628717,94373.0,94372.0,1.10332269]
[1732139613197,1.00935269,94373.0,94372.0,1.09484802]
[1732139616048,1.15635269,94373.0,94372.0,1.09484802]
[1732139616823,1.26541524,94373.0,94372.0,1.09484802]
[1732139619820,1.15635269,94373.0,94372.0,1.09484802]
[1732139621294,0.99520133,94373.0,94372.0,1.09484802]
[1732139621515,1.15635269,94373.0,94372.0,1.09484802]
[1732139621746,1.44116883,94373.0,94372.0,1.09484802]
[1732139622164,1.15635269,94373.0,94372.0,1.09484802]
[1732139622609,1.12942417,94373.0,94372.0,1.09484802]
[1732139623044,1.23848672,94373.0,94372.0,1.09484802]
[1732139625206,1.44984233,94373.0,94372.0,1.08584436]
[1732139626134,1.13058326,94373.0,94372.0,1.08584436]
[1732139626333,1.45206116,94373.0,94372.0,1.08584436]
[1732139626785,1.09751774,94373.0,94372.0,0.5564168]
[1732139627222,1.09751774,94373.0,94372.0,0.55395237]
[1732139628349,1.09751774,94373.0,94372.0,0.55644008]
[1732139628876,1.09751774,94373.0,94372.0,0.55395237]
[1732139631070,1.09753811,94373.0,94372.0,0.55395237]
[1732139631575,1.16182379,94373.0,94372.0,0.55395237]
[1732139631798,0.81018697,94373.0,94372.0,0.55395237]
[1732139632277,0.81018697,94373.0,94372.0,0.55643795]
[1732139632512,0.81018697,94373.0,94372.0,0.55395237]
[1732139633014,0.74590129,94373.0,94372.0,0.55395237]
[1732139633257,0.55516762,94373.0,94372.0,0.55395237]
[1732139633477,0.55516762,94373.0,94372.0,0.6316365]
[1732139633478,0.56931898,94373.0,94372.0,0.6316365]
[1732139633707,0.95340055,94373.0,94372.0,0.6316365]
[1732139634196,1.0624631,94373.0,94372.0,0.6316365]
[1732139634908,0.95340055,94373.0,94372.0,0.6316365]
[1732139635592,0.79224919,94373.0,94372.0,0.6316365]
[1732139635721,0.87282487,94373.0,94372.0,0.6316365]
[1732139635925,1.11090146,94373.0,94372.0,0.6316365]
[1732139636800,0.87282487,94373.0,94372.0,0.6316365]
[1732139638754,1.01982487,94373.0,94372.0,0.6316365]
[1732139639368,1.12888742,94373.0,94372.0,0.6316365]
[1732139640696,1.2094631,94373.0,94372.0,0.6316365]
[1732139641374,1.23639162,94373.0,94372.0,0.6316365]
[1732139641596,1.23639162,94373.0,94372.0,0.5564365]
[1732139642523,1.12244652,94373.0,94372.0,0.55395237]
[1732139643245,1.12244652,94373.0,94357.0,0.0017126]
[1732139643246,0.18655968,94353.0,94352.0,0.084513]
[1732139643452,0.25609912,94353.0,94352.0,0.084513]
[1732139643665,0.79814659,94353.0,94352.0,0.08702053]
[1732139643826,0.60773312,94353.0,94352.0,0.084513]
[1732139644026,0.79815261,94353.0,94352.0,0.084513]
[1732139644234,0.60773312,94353.0,94352.0,0.084513]
[1732139644407,0.25609912,94353.0,94352.0,0.084513]
[1732139644693,0.84553759,94353.0,94352.0,0.084513]
[1732139645119,0.84753759,94353.0,94352.0,0.084513]
[1732139645351,0.60753089,94353.0,94352.0,0.084513]
[1732139645571,0.60753089,94353.0,94352.0,0.085513]
[1732139646012,0.60753089,94353.0,94352.0,0.084513]
[1732139646443,0.60753089,94353.0,94352.0,0.085513]
[1732139647138,0.60953089,94353.0,94352.0,0.084513]
[1732139647361,0.75104101,94353.0,94352.0,0.084513]
[1732139647576,0.75104101,94353.0,94352.0,0.085513]
[1732139648462,0.64197846,94353.0,94352.0,0.085513]
[1732139648879,0.64197846,94353.0,94352.0,0.084513]
[1732139649110,0.64197846,94353.0,94352.0,0.085513]
[1732139649330,0.6418355,94353.0,94352.0,0.085513]
[1732139649514,0.68405771,94353.0,94352.0,0.085513]
[1732139651461,0.67405771,94353.0,94352.0,0.085513]
[1732139651664,0.68405771,94353.0,94352.0,0.085513]
[1732139652306,0.68205771,94353.0,94352.0,0.085513]
[1732139653334,0.79312026,94353.0,94352.0,0.085513]
[1732139653752,0.68405771,94353.0,94352.0,0.085513]
[1732139656189,0.68405771,94353.0,94352.0,0.002713]
[1732139656409,0.81098623,94353.0,94352.0,0.002713]
[1732139656745,0.81098623,94353.0,94344.0,0.0501106]
[1732139656746,0.33156568,94348.0,94344.0,0.0017106]
[1732139656951,0.95840825,94348.0,94344.0,0.0017106]
[1732139657162,0.8493457,94348.0,94344.0,0.0017106]
[1732139657562,0.82241718,94348.0,94344.0,0.0017106]
[1732139659925,0.82213014,94348.0,94344.0,0.0017106]
[1732139663187,0.82200705,94348.0,94344.0,0.0017106]
[1732139667863,0.82191616,94348.0,94344.0,0.0017106]
[1732139668065,0.93097871,94348.0,94344.0,0.0017106]
[1732139669699,0.95790723,94348.0,94344.0,0.0017106]
[1732139672202,0.82191616,94348.0,94344.0,0.0017106]
[1732139672905,0.82191616,94348.0,94347.0,0.131911]
[1732139672906,0.68389291,94348.0,94347.0,0.131911]
[1732139673125,0.33310512,94348.0,94347.0,0.131911]
[1732139673326,0.21410512,94348.0,94347.0,0.131911]
[1732139673463,0.21510512,94348.0,94347.0,0.131911]
[1732139675088,0.24755269,94348.0,94347.0,0.131911]
[1732139675289,0.26955269,94348.0,94347.0,0.131911]
[1732139675488,0.26855269,94348.0,94347.0,0.131911]
[1732139676691,0.27055269,94348.0,94347.0,0.131911]
[1732139676892,0.26855269,94348.0,94347.0,0.131911]
[1732139678320,0.23610512,94348.0,94347.0,0.131911]
[1732139682241,0.23610512,94348.0,94347.0,0.091911]
[1732139684777,0.13011512,94348.0,94347.0,0.091911]
[1732139685190,0.23610512,94348.0,94347.0,0.091911]
[1732139685407,0.23610512,94348.0,94347.0,0.09469628]
[1732139685610,0.23610512,94348.0,94347.0,0.091911]
[1732139687256,0.23610512,94348.0,94347.0,0.0944423]
[1732139688651,0.23610512,94348.0,94347.0,0.091911]
[1732139690320,0.115992,94346.0,94344.0,0.0017106]
[1732139690523,0.24610712,94346.0,94344.0,0.0017106]
[1732139690958,0.27817343,94346.0,94344.0,0.0017106]
[1732139691249,0.71173755,94346.0,94344.0,0.0017106]
[1732139693222,0.8238001,94346.0,94345.0,0.0017132]
[1732139693442,0.8338001,94346.0,94345.0,0.0017132]
[1732139695345,0.95743568,94346.0,94345.0,0.0017132]
[1732139695759,0.72873755,94346.0,94345.0,0.0017132]
[1732139695968,0.91085282,94346.0,94345.0,0.0017132]
[1732139696223,0.58806423,94346.0,94345.0,0.0806132]
[1732139696433,0.31117646,94346.0,94345.0,0.0806132]
[1732139696644,0.21610712,94346.0,94345.0,0.0806132]
[1732139696853,0.21410712,94346.0,94345.0,0.0806132]
[1732139697277,0.21710712,94346.0,94345.0,0.0806132]
[1732139697703,0.24010712,94346.0,94345.0,0.0806132]
[1732139698131,0.23910712,94346.0,94345.0,0.0806132]
[1732139698536,0.23610712,94346.0,94345.0,0.0806132]
[1732139701847,0.128992,94346.0,94345.0,0.0806132]
[1732139702348,0.128992,94346.0,94345.0,0.0831469]
[1732139705499,0.23610712,94346.0,94345.0,0.0831469]
[1732139706012,0.23610712,94346.0,94345.0,0.0806132]
[1732139708869,0.128992,94346.0,94345.0,0.0806132]
[1732139709088,0.128992,94346.0,94345.0,0.1275132]
[1732139709508,0.128992,94346.0,94345.0,0.1300469]
[1732139715263,0.023,94346.0,94345.0,0.1300469]
[1732139715476,0.0017126,94348.0,94347.0,0.105991]
[1732139715694,0.0017126,94348.0,94347.0,0.23425075]
[1732139715908,0.0017126,94348.0,94347.0,0.23571298]
[1732139726482,0.0017126,94348.0,94347.0,0.31628866]
[1732139727717,0.0017126,94348.0,94347.0,0.31714496]
[1732139730974,0.0017126,94348.0,94347.0,0.23656928]
[1732139740652,0.0017126,94348.0,94347.0,0.31714496]
[1732139744188,0.0017126,94348.0,94347.0,0.23656928]
[1732139753167,0.0017126,94348.0,94347.0,0.23156928]
[1732139754515,0.0017126,94348.0,94347.0,0.10436928]
[1732139755828,0.0017126,94348.0,94347.0,0.00337828]
[1732139758856,0.1077026,94348.0,94347.0,0.00337828]
[1732139759045,0.1307026,94348.0,94347.0,0.00337828]
[1732139759448,0.1307026,94348.0,94347.0,0.0008563]
[1732139770538,0.0017126,94348.0,94347.0,0.0008563]
[1732139771233,0.0017126,94348.0,94347.0,0.1094966]
[1732139771441,0.0017126,94348.0,94347.0,0.19113212]
[1732139771688,0.0017126,94348.0,94347.0,0.191132]
[1732139771858,0.0017126,94348.0,94347.0,0.11055632]
[1732139774867,0.0017126,94348.0,94347.0,0.316332]
[1732139775087,0.0017126,94348.0,94347.0,0.32527228]
[1732139776577,0.0017126,94348.0,94347.0,0.33527228]
[1732139776783,0.0017126,94348.0,94347.0,0.4423874]
[1732139777609,0.0017126,94348.0,94347.0,0.53685719]
[1732139777814,0.0017126,94348.0,94347.0,0.4423874]
[1732139778016,0.0017126,94348.0,94347.0,0.53678686]
[1732139778225,0.0017126,94348.0,94347.0,0.4423874]
[1732139779195,0.0017126,94348.0,94347.0,0.53678686]
[1732139779373,0.0017126,94348.0,94347.0,0.4423874]
[1732139785979,0.0017126,94348.0,94347.0,0.68595359]
[1732139786205,0.0017126,94348.0,94347.0,0.5443874]
[1732139786434,0.0017126,94348.0,94347.0,0.68595359]
[1732139786664,0.0017126,94348.0,94347.0,0.5443874]
[1732139787106,0.0017126,94348.0,94347.0,0.68583019]
[1732139787321,0.0017126,94348.0,94347.0,0.5443874]
[1732139787533,0.0017126,94348.0,94347.0,0.68580834]
[1732139787773,0.0017126,94348.0,94347.0,0.5443874]
[1732139790246,0.0017126,94348.0,94347.0,0.46181172]
[1732139790471,0.0017126,94348.0,94347.0,0.5423874]
[1732139791129,0.0017126,94348.0,94347.0,0.40327819]
[1732139791351,0.0017126,94348.0,94347.0,0.3089966]
[1732139791577,0.0017126,94348.0,94347.0,0.2989966]
[1732139792682,0.0017126,94348.0,94347.0,0.46501172]
[1732139792906,0.0017126,94348.0,94347.0,0.46701172]
[1732139793120,0.0017126,94348.0,94347.0,0.65559771]
[1732139793339,0.0017126,94348.0,94347.0,0.70274421]
[1732139793553,0.0017126,94348.0,94347.0,0.46701172]
[1732139795085,0.0017126,94348.0,94347.0,0.46501172]
[1732139795666,0.0017126,94348.0,94347.0,0.60636766]
[1732139796636,0.0017126,94348.0,94347.0,0.5455874]
[1732139799029,0.0017126,94348.0,94347.0,0.5475874]
[1732139799487,0.0017126,94348.0,94347.0,0.76751902]
[1732139799733,0.0017126,94348.0,94347.0,0.62616308]
[1732139799943,0.0017126,94348.0,94347.0,0.81664192]
[1732139800174,0.0017126,94348.0,94347.0,0.62816308]
[1732139800393,0.0017126,94348.0,94347.0,0.68884657]
[1732139800624,0.0017126,94348.0,94347.0,0.62816308]
[1732139800843,0.0017126,94348.0,94347.0,0.72233206]
[1732139801061,0.0017126,94348.0,94347.0,0.64175638]
[1732139807561,0.0017126,94348.0,94347.0,0.5475874]
[1732139807978,0.0017126,94348.0,94347.0,0.64176227]
[1732139808481,0.0017126,94348.0,94347.0,0.5475874]
[1732139809577,0.0017126,94348.0,94347.0,0.68884657]
[1732139810000,0.0017126,94348.0,94347.0,0.68888835]
[1732139811542,0.0017126,94348.0,94347.0,0.5475874]
[1732139812517,0.0017126,94348.0,94347.0,0.62816308]
[1732139812746,0.0017126,94348.0,94347.0,0.73610194]